Cogmind - Beta 12 @@@ ROGUE MODE // 2023.12.16 @ 08:13:27 Player: Savagecelery Result: Destroyed by YI-UF0 with YI-UF0's Doublenader Performance ------------- Evolutions (0) 0 Regions Visited (2) 400 Robots Destroyed (19) 95 Value Destroyed (363) 363 Prototype IDs (0) 0 Alien Tech Used (0) 0 Bonus (0) 0 TOTAL SCORE: 858 Bonus ------- None Cogmind --------- Core Integrity 0/250 Matter 182/300 Energy 52/125 System Corruption 0% Temperature Cool (38) Movement Rolling (140) Ox4 Location -10/Mines Parts ------- > --- POWER (1) -------- Light Ion Engine > --- PROPULSION (2) --- Wheel Wheel > --- UTILITY (2) ------ Huge Storage Unit Structural Scanner > --- WEAPON (2) ------- (None) > --- INVENTORY (25) --- Light Ion Engine Wheel Wheel Compact Wheel Compact Wheel Compact Wheel Flight Unit Flight Unit Flight Unit Small Storage Unit Rocket Launcher Rocket Launcher Rocket Launcher Rocket Launcher Mining Laser Peak State ------------ > --- POWER ------------ Ion Engine > --- PROPULSION ------- Wheel Wheel > --- UTILITY ---------- Huge Storage Unit Structural Scanner > --- WEAPON ----------- EM Shotgun Rocket Launcher > --- INVENTORY -------- Light Ion Engine Light Ion Engine Wheel Wheel Compact Wheel Compact Wheel Compact Wheel Flight Unit Flight Unit Flight Unit Small Storage Unit EM Shotgun Rocket Launcher Rocket Launcher Rocket Launcher Mining Laser [Rating: 11] Favorites ----------- Power Ion Engine Engine Ion Engine Propulsion Wheel Leg Aluminum Leg Wheel Wheel Utility Structural Scanner Device Structural Scanner Storage Small Storage Unit Weapon Mining Claw Energy Gun EM Shotgun Ballistic Gun Assault Rifle Launcher Rocket Launcher Special Weapon Mining Laser Slashing Weapon Mining Claw Build | -11 -10 -10 ------- Run | Jun Mat Min Slots Evolved . | . . . Power . | . . . Propulsion . | . . . Utility . | . . . Weapon . | . . . Parts Attached 25 | 5 18 2 Power 3 | 1 1 1 Engine 3 | 1 1 1 Core . | . . . Reactor . | . . . Propulsion 8 | 2 6 . Treads . | . . . Leg 3 | . 3 . Wheel 5 | 2 3 . Hover . | . . . Flight . | . . . Utility 4 | 1 3 . Device 2 | . 2 . Storage 2 | 1 1 . Processor . | . . . Hackware . | . . . Protection . | . . . Artifact . | . . . Weapon 10 | 1 8 1 Energy Gun 5 | . 4 1 Energy Cannon . | . . . Ballistic Gun 1 | 1 . . Ballistic Cannon . | . . . Launcher 1 | . 1 . Special Weapon 2 | . 2 . Impact Weapon . | . . . Slashing Weapon 1 | . 1 . Piercing Weapon . | . . . Special Melee Weapon . | . . . Unidentified Prototypes . | . . . Parts Lost 8 | . 5 3 Power 2 | . 1 1 Propulsion 1 | . 1 . Utility . | . . . Weapon 5 | . 3 2 Highest Loss Streak 3 | . 2 3 To Critical Strikes . | . . . Average Slot Usage (%) 95 | . 94 99 Engine 13 | . 12 13 Leg 9 | . 11 . Wheel 18 | . 16 28 Device 13 | . 13 14 Storage 14 | . 14 14 Energy Gun 5 | . 3 14 Ballistic Gun 4 | . 5 . Launcher 4 | . 2 13 Special Weapon 4 | . 5 . Slashing Weapon 6 | . 8 . Naked Turns . | . . . Heaviest Build 93 | 10 93 93 Greatest Support 26 | 26 26 20 Greatest Overweight (x) 4 | . 4 4 Average Overweight (x) 1 | . . 4 Largest Inventory Capacity 25 | 8 25 25 Average Capacity 12 | 7 9 25 Most Carried 16 | 7 15 16 Average Carried 8 | 3 7 15 Final Capacity 25 | 8 25 25 Final Carried 15 | 7 14 15 Class Distribution -------------------- 89% | Mutant 10% | Scavenger-Mutant Dominant Class ---------------- Mutant | -10/Materials Mutant | -10/Mines Resources | -11 -10 -10 ----------- Run | Jun Mat Min Matter Collected 439 | 247 192 . Remotely . | . . . Salvage Created 334 | . 289 45 Parts 38 | . 30 8 Haulers Intercepted 1 | . 1 . Recyclers Shooed 1 | . 1 . Parts Field Recycled . | . . . Retrieved Matter . | . . . Parts Self-Destructed . | . . . Prevented . | . . . Kills | -11 -10 -10 ------- Run | Jun Mat Min Combat Hostiles Destroyed 12 | . 9 3 Melee 2 | . 2 . Guns 4 | . 2 2 Cannons 2 | . 2 . AOE 4 | . 3 1 Classes Destroyed 7 | . 7 . Worker 2 | . 2 . Builder 2 | . 2 . Hauler 1 | . 1 . Operator 1 | . 1 . Watcher 1 | . 1 . Swarmer 6 | . 3 3 Grunt 6 | . 6 . Best Kill Streak 7 | . 7 3 Combat Bots Only 3 | . 3 3 Max Kills in Single Turn 2 | . 2 1 Gunslinging . | . . . Exploded 1 | . 1 1 Melee 1 | . 1 . Uniques/NPCs Destroyed . | . . . Combat | -11 -10 -10 -------- Run | Jun Mat Min Damage Taken 970 | . 638 332 Core 252 | . 132 120 Absorbed by Shields . | . . . Core Remaining (%) 100 | 100 . . Volleys Fired 71 | . 64 7 Largest 2 | . 2 2 Hottest 200 | . 200 90 Shots Fired 75 | . 67 8 Gun 63 | . 55 8 Cannon . | . . . Launcher 3 | . 3 . Special 9 | . 9 . Kinetic 38 | . 38 . Thermal 16 | . 16 . Explosive 3 | . 3 . Electromagnetic 18 | . 10 8 Robot Hit Streak 10 | . 10 3 Robot Miss Streak 5 | . 5 2 Penetration Max . | . . . Secondary Targets . | . . . Shots Hit Robots 51 | . 44 7 Core Hits 27 | . 21 6 Critical Kills . | . . . Critical Parts Destroyed . | . . . Critical Strikes . | . . . Melee Attacks 5 | . 5 . Impact . | . . . Slashing 5 | . 5 . Piercing . | . . . Sneak Attacks . | . . . Combat Hostiles . | . . . Follow-up Attacks . | . . . Damage Inflicted 1201 | . 1076 125 Guns 557 | . 473 84 Cannons . | . . . Explosions 450 | . 409 41 Melee 50 | . 50 . Ramming . | . . . Kinetic 355 | . 355 . Thermal 424 | . 383 41 Explosive 249 | . 249 . Electromagnetic 123 | . 39 84 Impact . | . . . Slashing 50 | . 50 . Piercing . | . . . Highest Corruption . | . . . Average Corruption . | . . . Corruption Purged . | . . . Corruption Blocked . | . . . Overload Shots . | . . . Overflow Damage 84 | . 84 . Projectiles 10 | . 10 . Explosions 74 | . 74 . Melee . | . . . Knockbacks . | . . . Impact . | . . . Kinetic . | . . . Secondary . | . . . Self-Inflicted Damage 12 | . . 12 Shots 1 | . . 1 Rammed . | . . . Targets Rammed . | . . . Kicked . | . . . Crushed . | . . . Highest Temperature 268 | . 268 38 Average Temperature 87 | . 102 19 Received Heat Transfer 342 | . 342 . Siege Activations . | . . . Robots Corrupted . | . . . Combat Hostiles . | . . . Parts Fried . | . . . Impact Corruptions . | . . . Robots Melted . | . . . Combat Hostiles . | . . . Parts Melted . | . . . Heat Transferred 575 | . 575 . Parts Sabotaged . | . . . Parts Stolen . | . . . Parts Stripped . | . . . Power Chain Reactions 1 | . . 1 Missiles Intercepted . | . . . Alert | -11 -10 -10 ------- Run | Jun Mat Min Peak Influence 201 | . 201 190 Initial 78 | . . 78 Average 97 | . 96 148 Maximum Alert Level 1 | . 1 . Low Security (%) 94 | 100 92 100 Level 1 5 | . 7 . Level 2 . | . . . Level 3 . | . . . Level 4 . | . . . Level 5 . | . . . High Security . | . . . Max Security . | . . . Squads Dispatched 2 | . 2 . Investigation 1 | . 1 . Extermination . | . . . Reinforcement 1 | . 1 . Assault . | . . . Garrison . | . . . Intercept . | . . . Searches Triggered . | . . . Construction Impeded . | . . . Haulers Reinforced . | . . . Active Scanning Responses . | . . . Cargo Convoy Interrupts . | . . . Stealth | -11 -10 -10 --------- Run | Jun Mat Min Distress Signals . | . . . Communications Jammed . | . . . Distress Signals . | . . . Times Spotted 19 | . 15 4 Peak Tracking Total 4 | . 4 3 Tactical Retreats 1 | . 1 . Traps | -11 -10 -10 ------- Run | Jun Mat Min Traps Triggered . | . . . Indirectly . | . . . Trap Hack Attempts . | . . . Triggered . | . . . Disarmed . | . . . Reprogrammed . | . . . Reused . | . . . Traps Extracted . | . . . Installed . | . . . Triggered . | . . . Machines | -11 -10 -10 ---------- Run | Jun Mat Min Machines Disabled 4 | . 3 1 Max in Single Turn 2 | . 2 1 Machines Repaired . | . . . Machines Sabotaged . | . . . Overloaded Fab Kills . | . . . Hacking | -11 -10 -10 --------- Run | Jun Mat Min Machines Accessed 4 | . 4 . Terminals 4 | . 4 . Fabricators . | . . . Repair Stations . | . . . Recycling Units . | . . . Scanalyzers . | . . . Garrison Access . | . . . Total Hacks 13 | . 13 . Successful 6 | . 6 . Failed 7 | . 7 . Catastrophic 1 | . 1 . Database Lockouts . | . . . Manual 13 | . 13 . Terminals 13 | . 13 . Fabricators . | . . . Repair Stations . | . . . Recycling Units . | . . . Scanalyzers . | . . . Garrison Access . | . . . Terminal Hacks 2 | . 2 . Part Schematic 2 | . 2 . Fabricator Hacks . | . . . Repair Station Hacks . | . . . Recycling Unit Hacks . | . . . Scanalyzer . | . . . Garrison Access Hacks . | . . . Unauthorized Hacks 4 | . 4 . Terminals 4 | . 4 . Botnet 4 | . 4 . Fabricators . | . . . Repair Stations . | . . . Recycling Units . | . . . Scanalyzers . | . . . Garrison Access . | . . . Data Cores Recovered 1 | . 1 . Used . | . . . Hacking Detections 4 | . 4 . Full Trace Events 1 | . 1 . Feedback Events . | . . . Feedback Blocked . | . . . Robot Schematics Acquired . | . . . Robots Built . | . . . Authchips . | . . . Time . | . . . Total Robot Build Rating . | . . . Part Schematics Acquired 2 | . 2 . Parts Built . | . . . Authchips . | . . . Time . | . . . Total Part Build Rating . | . . . Parts Repaired . | . . . Time . | . . . Parts Recycled . | . . . Recycled Matter . | . . . Retrieved Matter . | . . . Retrieved Components . | . . . Parts Scanalyzed . | . . . Part Schematics Acquired . | . . . Parts Damaged . | . . . Bothacking | -11 -10 -10 ------------ Run | Jun Mat Min Used RIF Installer . | . . . Robots Hacked . | . . . Non-combat . | . . . Combat . | . . . Robot Hacks Applied . | . . . Relay Couplers Released . | . . . Fabnet Peak Effective % . | . . . Robots Rewired . | . . . Allies Hacked . | . . . Hacks Repelled . | . . . Allies | -11 -10 -10 -------- Run | Jun Mat Min Total Allies 1 | . . 1 Largest Group 1 | . . 1 Highest-Rated Group 31 | . . 31 Highest-Rated Ally 31 | . . 31 Total Orders . | . . . Ally Attacks 5 | . . 5 Total Damage 65 | . . 65 Kills . | . . . Allies Corrupted . | . . . Allies Melted . | . . . Intel | -11 -10 -10 ------- Run | Jun Mat Min Robot Analysis Total . | . . . Derelict Logs Recovered 1 | . . 1 Drone Launches . | . . . Drone Recoveries . | . . . Exploration | -11 -10 -10 ------------- Run | Jun Mat Min Turns Passed 777 | 70 557 150 Spaces Moved 484 | 68 322 94 Core 14 | 14 . . Treads . | . . . Legs 136 | . 136 . Wheels 334 | 54 186 94 Hover . | . . . Flight . | . . . Fastest Speed 50 | 50 80 140 Average Speed 110 | 81 108 140 Slowest Speed 190 | 90 190 140 Overloaded Moves . | . . . Propulsion Burnouts . | . . . Robots Hopped . | . . . Cave-ins Triggered . | . . . Exploration Rate (%) 23 | 4 43 24 Regions Visited 2 Branch Regions 1 Pre-discovered Areas . | . . . Known Exits Taken . | . . . Unknown Exits Taken 2 | 1 1 . Scrap Searched . | . . . Spaces Dug . | . . . Terrain Destroyed 36 | . 19 17 Melee . | . . . Projectile 1 | . 1 . AOE 35 | . 18 17 Terrain Rammed . | . . . Walls Destroyed . | . . . Machines Disabled . | . . . Actions | -11 -10 -10 --------- Run | Jun Mat Min Total 618 | 79 434 105 Wait . | . . . Move 482 | 67 321 94 Hop . | . . . Pick Up 22 | 7 13 2 Fast Attach 17 | 5 12 . Attach 3 | . 2 1 Detach 1 | . 1 . Swap 5 | . 4 1 Drop 12 | . 12 . Fire 71 | . 64 7 Melee 5 | . 5 . Ram . | . . . Kick . | . . . Crush . | . . . Escape Stasis . | . . . Rewire . | . . . Trap . | . . . Miscellaneous . | . . . Route ------- -11/Junkyard -10/Materials (discovered 3 exits: [*Mat x2] / [*Min]) -10/Mines (discovered 1 exit: [*Mat]) History --------- Turn | Location | Event 3 | -11/Junkyard | Discovered new exit (range 15) 71 | -11/Junkyard | Entered Materials 313 | -10/Materials | Build established: Mutant 393 | -10/Materials | Discovered new exit (range 6) 434 | -10/Materials | Discovered new exit (range 13) 519 | -10/Materials | Core integrity fell below 50% 528 | -10/Materials | Discovered new exit (range 15) 628 | -10/Materials | Entered Mines 640 | -10/Mines | Learned 2 Materials zone layouts 730 | -10/Mines | Escorted by a lone wolf Derelict 762 | -10/Mines | Discovered new exit (range 15) 765 | -10/Mines | Core integrity fell below 20% 778 | -10/Mines | Destroyed by YI-UF0 with YI-UF0's Doublenader Last Messages --------------- 00665_ S-10 Pest destroyed. 00669_ Chain reaction triggered in Lgt. Ion Engine. 00669_ S-10 Pest destroyed. 00672_ Acquired Flight Unit. 00675_ Acquired Lgt. Ion Engine. 00730_ A derelict emerges from the shadows: "Nice work disposing of those Unaware! I'm happy to return the favor and help see you out of these parts." 00755_ The unstable cave ceiling collapses. 00762_ EXIT=FOUND 00764_ Ion Engine destroyed. 00765_ The unstable cave ceiling collapses. 00771_ R-06 Scavenger collects Wheel. 00771_ 5T-VPE(g): "Mission, incomplete...*fzzt*" 00771_ 5T-VPE(g) destroyed. 00773_ EM Shotgun destroyed. 00774_ YI-UF0 mumbles something. 00775_ The unstable cave ceiling collapses. 00777_ R-06 Scavenger collects Lgt. Ion Engine. 00778_ EM Shotgun destroyed. Map ----- +----------------------------------------------------+ | ?????????????????????????????????????????????????? | | ?????????????????????????????????????????????????? | | ?????????????????????????????????????????????????? | | ?????????????????????????????????????????????????? | | ?????????????????????????????????????????????????? | | ?????????????????????????????????????????????????? | | ?????????????????????????????????????????????????? | | ?????????????????????????????????????????????????? | | ?????????????????????????????????????????????????? | | ?????????????????????????????????????????????????? | | ????????????????????????## ##??????????????????? | | ??????????????????????##### ##??????????????????? | | ??????????????????????### # ???###########????? | | ??????????????????????## ?? ############???? | | ??????????????????????## %*% ?? ### ###???? | | ??????????????????????## ??### ##???? | | ??????????????????????## ???## ##???? | | ?????????????????????? ???## ########???? | | ???????????????????????? ???### #########???? | | ??????????????????????## ###### ####?????????? | | ????????????????????###### ####### ############## | | ????????????????????#### # ## #### ############## | | ????????????????????## #### ## | | ??????????????????? ## # # #### """ ## | | ??????????????????? ### # ### """ ## | | ??????????????###?? # @ #### """ ## | | ?????????????### # ## | | ????????????? # ### """ ## | | ???????????? # ### """ ## | | ??????????? ### """ ## | | ???????????? g #### ## | | ???????????? % ### ## """ ## | | ???????????? % r ## ### #### """ ## | | ????????????? ### #### """ ## | | ????????????? % = ## ## | | ?????????????? # % ###### ## | | ?????????????? #%* ####### ## | | ???????????????? ### ####???###### ##### | | ??????????????????? < ## #####???###### ##### | | ????????????????????? ? ######??????????## ##??? | | ???????????????????????? ??####???????????## ##??? | | ??????????????????????????????????????????## ##??? | | ??????????????????????????????????????????## ##??? | | ??????????????????????????????????????????## ##??? | | ??????????????????????????????????????????## ##??? | | ??????????????????????????????????????????## ##??? | | ??????????????????????????????????????????## ##??? | | ??????????????????????????????????????????## ##### | | ??????????????????????????????????????????## ##### | | ??????????????????????????????????????????## ### | +----------------------------------------------------+ Best States ------------- Heat Dissipation 25 Energy Generation 10 Energy Capacity 250 Matter Stores 300 Matter Capacity 300 Sight Range 16 Terrain Scan Range 14 Terrain Scan Density 10 Evasion (%) 55 Item Schematics ----------------- Utility Shielding | -10/Materials | Hacked Propulsion Shielding | -10/Materials | Hacked Robot Schematics ------------------ None Fabricated ------------ Nothing Alien Tech Used ----------------- None Achievements -------------- None Challenges ------------ None Game ------ Seed DeuteriumThiefLoader Manual? 0 Play Time 00:11:55 Cumulative 237.0 hours Start 2023.12.16 @ 08:01:36 End 2023.12.16 @ 08:13:27 Sessions 1 Manual Loads 0 Difficulty Rogue Special Mode None Game No. 54 Rogue 44 Adventurer 4 Explorer 6 Win Type - Total 17 Types 7/0/2/3/0/4/1/0/0 Lore% 60 Gallery% 70 Achievement% 66 Wizard Run 0 Options --------- ASCII 0 Keyboard 0 Movement Mouse Keybinds 0 Fullscreen 1 Font 24/Smallcaps Map View 76x50 Tactical HUD 1 Map Filters NONE Filters NONE Steam 1 RUN: 93a4042d-a16b-4c16-906e-ac9f8cd0ccca